Cogmind - Beta 17.1 @@@ ROGUE MODE // 2026.09.22 @ 22:23:37 Player: Turtle Result: Self-destructed Performance ------------- Evolutions (1) 500 Regions Visited (2) 400 Robots Destroyed (25) 125 Value Destroyed (389) 389 Prototype IDs (2) 40 Alien Tech Used (0) 0 Bonus (0) 0 TOTAL SCORE: 1454 Bonus ------- None Cogmind --------- Core Integrity 344/400 Matter 230/300 Energy 125/125 System Corruption 0% Temperature Cool (0) Movement Treading (160) Location -9/Materials Parts ------- > --- POWER (1) -------- Light Ion Engine > --- PROPULSION (3) --- Light Treads Improved Treads Improved Treads > --- UTILITY (3) ------ Heat Sink High-capacity Storage Unit Hacking Suite > --- WEAPON (2) ------- Small Laser Mini Grenade Launcher > --- INVENTORY (20) --- Ion Engine Ion Engine Light Ion Engine Improved Treads Improved Treads Heat Sink Large Storage Unit Huge Storage Unit Small Battery (100) Small Matter Pod (2) ECM Suite Core Shielding Hacking Suite Light Cannon Peak State ------------ > --- POWER ------------ Light Ion Engine > --- PROPULSION ------- Light Treads Improved Treads Improved Treads > --- UTILITY ---------- Heat Sink High-capacity Storage Unit Hacking Suite > --- WEAPON ----------- Small Laser Mini Grenade Launcher > --- INVENTORY -------- Ion Engine Ion Engine Light Ion Engine Improved Treads Improved Treads Heat Sink Large Storage Unit Huge Storage Unit Small Battery Small Matter Pod ECM Suite Core Shielding Hacking Suite Light Cannon [Rating: 15] Favorites ----------- Power Ion Engine Engine Ion Engine Propulsion Improved Treads Treads Improved Treads Wheel Wheel Utility High-capacity Storage Unit Device Heat Sink Storage High-capacity Storage Unit Hackware Hacking Suite Weapon Small Laser Energy Gun Small Laser Ballistic Gun Light Assault Rifle Launcher Mini Grenade Launcher Special Weapon Mining Laser Build | -11 -10 -9 ------- Run | Yrd Mat Mat Slots Evolved 2 | . . 2 Power . | . . . Propulsion 1 | . . 1 Utility 1 | . . 1 Weapon . | . . . Parts Attached 21 | 8 11 2 Power 3 | 1 2 . Engine 3 | 1 2 . Core . | . . . Reactor . | . . . Propulsion 8 | 3 4 1 Treads 3 | . 2 1 Leg . | . . . Wheel 5 | 3 2 . Hover . | . . . Flight . | . . . Utility 4 | 1 2 1 Device 1 | . 1 . Storage 2 | 1 1 . Processor . | . . . Hackware 1 | . . 1 Protection . | . . . Artifact . | . . . Weapon 6 | 3 3 . Energy Gun 2 | 2 . . Energy Cannon . | . . . Ballistic Gun 2 | . 2 . Ballistic Cannon . | . . . Launcher 1 | . 1 . Special Weapon 1 | 1 . . Impact Weapon . | . . . Slashing Weapon . | . . . Piercing Weapon . | . . . Special Melee Weapon . | . . . Unidentified Prototypes . | . . . Parts Lost . | . . . Power . | . . . Propulsion . | . . . Utility . | . . . Weapon . | . . . Highest Loss Streak . | . . . To Critical Strikes . | . . . Average Backups 10 | 2 10 14 Power 1 | . 2 3 Propulsion 2 | . 2 2 Utility 5 | . 5 8 Weapon . | . . 1 Tool/Special . | . . . Unused Backups 18 | . 5 13 Power 2 | . . 2 Propulsion 6 | . 4 2 Utility 8 | . . 8 Weapon 2 | . 1 1 Tool/Special . | . . . Average Slot Usage (%) 98 | . 98 98 Engine 13 | . 14 11 Treads 24 | . 24 33 Wheel 3 | . 4 . Device 11 | . 12 11 Storage 13 | . 14 11 Energy Gun 14 | . 15 11 Launcher 12 | . 12 11 Peak Build Rating 15 | 6 12 15 Average Rating 10 | 5 10 14 On Entrance 6 | . 6 12 Avg Prop Armor Cover (%) . | . . . Naked Turns . | . . . Heaviest Build 48 | 13 48 46 Greatest Support 66 | 26 46 66 Greatest Overweight (x) 1 | . 1 . Average Overweight (x) . | . . . Largest Inventory Capacity 20 | 8 20 20 Average Capacity 17 | 7 18 20 Most Carried 16 | 4 16 15 Average Carried 10 | 2 10 14 Final Capacity 20 | 8 20 20 Final Carried 16 | 4 16 14 Class Distribution -------------------- 100% | Mutant Dominant Class ---------------- Mutant | -10/Materials Mutant | -9/Materials Resources | -11 -10 -9 ----------- Run | Yrd Mat Mat Matter Collected 481 | 290 161 30 Remotely . | . . . Salvage Created 491 | 123 280 88 Parts 46 | 14 28 4 Haulers Intercepted 1 | . 1 . Recyclers Shooed . | . . . Parts Field Recycled . | . . . Retrieved Matter . | . . . Parts Self-Destructed . | . . . Prevented . | . . . Parts Restored . | . . . Kills | -11 -10 -9 ------- Run | Yrd Mat Mat Combat Hostiles Destroyed 11 | . 8 3 Guns 5 | . 4 1 AOE 6 | . 4 2 Classes Destroyed 10 | 2 5 3 Worker 3 | 2 1 . Builder 1 | . . 1 Tunneler 4 | 4 . . Hauler 1 | . 1 . Mechanic 1 | . . 1 Operator 2 | . 2 . Watcher 2 | . 2 . Swarmer 6 | . 6 . Grunt 4 | . 2 2 Sentry 1 | . . 1 Best Kill Streak 5 | 2 3 5 Combat Bots Only 3 | . 3 3 Max Kills in Single Turn 3 | 1 3 2 Gunslinging . | . . . Exploded 3 | . 3 1 Melee . | . . . Uniques/NPCs Destroyed . | . . . Combat | -11 -10 -9 -------- Run | Yrd Mat Mat Hostile Shots Fired 67 | . 42 25 Missed 20 | . 16 4 Hits 47 | . 26 21 Projectile 47 | . 26 21 Damage Taken 636 | . 332 304 Core 109 | . 53 56 Absorbed by Shields . | . . . Core Remaining (%) 89 | 100 78 . Volleys Fired 68 | 17 43 8 Largest 2 | 2 2 2 Hottest 140 | 140 80 70 Shots Fired 100 | 30 54 16 Gun 86 | 28 50 8 Cannon . | . . . Launcher 12 | . 4 8 Special 2 | 2 . . Kinetic 9 | . 9 . Thermal 65 | 19 38 8 Explosive 12 | . 4 8 Electromagnetic 14 | 11 3 . Robot Hit Streak 6 | 6 5 5 Robot Miss Streak 5 | 3 5 1 Penetration Max . | . . . Secondary Targets . | . . . Shots Hit Robots 55 | 15 28 12 Core Hits 35 | 7 20 8 Critical Kills . | . . . Critical Parts Destroyed . | . . . Critical Strikes . | . . . Melee Attacks . | . . . Impact . | . . . Slashing . | . . . Piercing . | . . . Sneak Attacks . | . . . Combat Hostiles . | . . . Follow-up Attacks . | . . . Damage Inflicted 1166 | 210 511 445 Guns 549 | 186 287 76 Cannons . | . . . Explosions 593 | . 224 369 Melee . | . . . Ramming . | . . . Kinetic 40 | . 40 . Thermal 507 | 127 304 76 Explosive 509 | . 140 369 Electromagnetic 110 | 83 27 . Impact . | . . . Slashing . | . . . Piercing . | . . . Highest Corruption . | . . . Average Corruption . | . . . Corruption Purged . | . . . Corruption Blocked . | . . . Overload Shots . | . . . Overflow Damage 13 | . 13 . Projectiles . | . . . Explosions 13 | . 13 . Melee . | . . . Knockbacks . | . . . Impact . | . . . Kinetic . | . . . Secondary . | . . . Self-Inflicted Damage 110 | . 68 42 Shots 3 | . 2 1 Rammed . | . . . Targets Rammed . | . . . Kicked . | . . . Crushed . | . . . Highest Temperature 108 | 108 100 5 Average Temperature 36 | 35 37 5 Received Heat Transfer 207 | . 96 111 Siege Activations . | . . . Martial Activations . | . . . Shielding Activations . | . . . Robots Disrupted . | . . . Combat Hostiles . | . . . Robots Corrupted . | . . . Combat Hostiles . | . . . Parts Fried . | . . . Impact Corruptions . | . . . Robots Melted . | . . . Combat Hostiles . | . . . Parts Melted . | . . . Heat Transferred 1050 | 275 600 175 Parts Sabotaged . | . . . Parts Stolen . | . . . Parts Stripped . | . . . Power Chain Reactions 1 | . 1 . Alert | -11 -10 -9 ------- Run | Yrd Mat Mat Maximum Alert Level . | . . . Low Security (%) 100 | 100 100 100 Level 1 . | . . . Level 2 . | . . . Level 3 . | . . . Level 4 . | . . . Level 5 . | . . . High Security . | . . . Max Security . | . . . Peak Influence 122 | 10 122 115 Initial 6 | . . 6 Average 33 | 1 37 38 Influence Increases 480 | 30 320 130 Destroy 0b10 Robot/C 220 | . 160 60 Destroy 0b10 Robot/NC 70 | 30 30 10 Destroy Leader 46 | . 36 10 Successful Hack 22 | . 17 5 Disable Machine 30 | . 30 . Destroy Structure 77 | . 32 45 Lose Combat Pursuer 15 | . 15 . Influence Decreases 370 | 30 304 36 Entered New Map 10 | . . 10 Time Decay 360 | 30 304 26 Squads Dispatched . | . . . Investigation . | . . . Extermination . | . . . Reinforcement . | . . . Assault . | . . . Garrison . | . . . Intercept . | . . . Searches Triggered . | . . . Construction Impeded . | . . . Haulers Reinforced . | . . . Active Scanning Responses . | . . . Cargo Convoy Interrupts . | . . . Stealth | -11 -10 -9 --------- Run | Yrd Mat Mat Distress Signals 1 | . 1 . Communications Jammed . | . . . Distress Signals . | . . . Times Spotted 17 | . 14 3 Peak Tracking Total 3 | . 3 3 Tactical Retreats 1 | . 1 . Traps | -11 -10 -9 ------- Run | Yrd Mat Mat Traps Triggered . | . . . Indirectly . | . . . Trap Hack Attempts . | . . . Triggered . | . . . Disarmed 6 | . 6 . Reprogrammed . | . . . Reused . | . . . Traps Extracted . | . . . Installed . | . . . Triggered . | . . . Objects Rigged 2 | . 2 . Machines | -11 -10 -9 ---------- Run | Yrd Mat Mat Machines Disabled 2 | . 2 . Max in Single Turn 1 | . 1 . Machines Repaired . | . . . Machines Dismantled . | . . . Machines Sabotaged . | . . . Overloaded Fab Kills . | . . . Hacking | -11 -10 -9 --------- Run | Yrd Mat Mat Machines Accessed 7 | . 6 1 Terminals 7 | . 6 1 Fabricators . | . . . Repair Stations . | . . . Recycling Units . | . . . Scanalyzers . | . . . Garrison Access . | . . . Total Hacks 17 | . 15 2 Successful 8 | . 6 2 Failed 9 | . 9 . Catastrophic 3 | . 3 . Database Lockouts . | . . . Manual 13 | . 12 1 Terminals 17 | . 15 2 Fabricators . | . . . Repair Stations . | . . . Recycling Units . | . . . Scanalyzers . | . . . Garrison Access . | . . . Terminal Hacks 6 | . 4 2 Robot Analysis 1 | . 1 . Prototype ID Bank 1 | . . 1 Locate Traps 1 | . 1 . Disarm Traps 1 | . 1 . Hauler Manifests 2 | . 1 1 Fabricator Hacks . | . . . Repair Station Hacks . | . . . Recycling Unit Hacks . | . . . Scanalyzer . | . . . Garrison Access Hacks . | . . . Unauthorized Hacks 2 | . 2 . Terminals 2 | . 2 . Track 1 | . 1 . Detonate 1 | . 1 . Fabricators . | . . . Repair Stations . | . . . Recycling Units . | . . . Scanalyzers . | . . . Garrison Access . | . . . Data Cores Recovered 2 | . 2 . Used . | . . . Hacking Detections 4 | . 4 . Full Trace Events . | . . . Feedback Events . | . . . Feedback Blocked . | . . . Robot Schematics Acquired . | . . . Robots Built . | . . . Authchips . | . . . Time . | . . . Total Robot Build Rating . | . . . Part Schematics Acquired . | . . . Parts Built . | . . . Authchips . | . . . Time . | . . . Total Part Build Rating . | . . . Part Studies Acquired . | . . . Parts Repaired . | . . . Time . | . . . Parts Recycled . | . . . Recycled Matter . | . . . Retrieved Matter . | . . . Retrieved Components . | . . . Parts Scanalyzed . | . . . Part Schematics Acquired . | . . . Parts Damaged . | . . . Bothacking | -11 -10 -9 ------------ Run | Yrd Mat Mat Used RIF Installer . | . . . Robots Hacked . | . . . Non-combat . | . . . Combat . | . . . Robot Hacks Applied . | . . . Relay Couplers Released . | . . . Fabnet Peak Effective % . | . . . Robots Rewired . | . . . Allies Hacked . | . . . Hacks Repelled . | . . . Allies | -11 -10 -9 -------- Run | Yrd Mat Mat Total Allies . | . . . Largest Group . | . . . Highest-Rated Group . | . . . Highest-Rated Ally . | . . . Total Orders . | . . . Ally Attacks . | . . . Total Damage . | . . . Kills . | . . . Allies Corrupted . | . . . Allies Melted . | . . . Intel | -11 -10 -9 ------- Run | Yrd Mat Mat Active Infowar (turns) . | . . . Robot Analysis Total 1 | . 1 . Derelict Logs Recovered . | . . . Drone Launches . | . . . Drone Recoveries . | . . . Exploration | -11 -10 -9 ------------- Run | Yrd Mat Mat Turns Passed 1314 | 161 1042 111 Spaces Moved 637 | 110 478 49 Core 4 | 4 . . Treads 444 | . 395 49 Legs . | . . . Wheels 189 | 106 83 . Hover . | . . . Flight . | . . . Fastest Speed 50 | 50 80 160 Average Speed 167 | 82 188 160 Slowest Speed 240 | 100 240 160 Overloaded Moves . | . . . Propulsion Burnouts . | . . . Robots Hopped . | . . . Potential Cave-ins . | . . . Cave-ins Triggered . | . . . Exploration Rate (%) 32 | 3 86 9 Regions Visited 2 Branch Regions . Pre-discovered Areas . | . . . Known Exits Taken . | . . . Unknown Exits Taken 2 | 1 1 . Scrap Searched . | . . . Spaces Dug . | . . . Terrain Destroyed 78 | . 32 46 Melee . | . . . Projectile . | . . . AOE 78 | . 32 46 Terrain Rammed . | . . . Walls Destroyed . | . . . Machines Disabled . | . . . Actions | -11 -10 -9 --------- Run | Yrd Mat Mat Total 778 | 142 571 65 Wait 9 | . 3 6 Move 635 | 109 477 49 Hop . | . . . Pick Up 27 | 6 21 . Fast Attach 7 | 5 2 . Attach 3 | 1 . 2 Detach 1 | . 1 . Swap 12 | 3 9 . Drop 16 | 1 15 . Fire 68 | 17 43 8 Melee . | . . . Ram . | . . . Kick . | . . . Crush . | . . . Escape Stasis . | . . . Rewire . | . . . Trap . | . . . Miscellaneous . | . . . Route ------- -11/Scrapyard -10/Materials (discovered 4 exits: *Mat x2 / [*Min] / [*Sub]) -9/Materials History --------- Turn | Location | Event 18 | -11/Scrapyard | Discovered new exit (range 16) 162 | -11/Scrapyard | Entered Materials 206 | -10/Materials | Discovered new exit (range 16) 334 | -10/Materials | Build established: Mutant 550 | -10/Materials | Discovered new exit (range 5) 876 | -10/Materials | Discovered new exit (range 16) 1165 | -10/Materials | Discovered new exit (range 8) 1204 | -10/Materials | Entered another Materials area 1204 | -9/Materials | Evolved 2 slots: Propulsion x1, Utility x1 1315 | -9/Materials | Self-destructed Last Messages --------------- A-02 Transporter 5x Hvy. Ion Engine 1x Sml. Matter Pod A-02 Transporter 3x Sml. Storage Unit 2x Adv. Beam Cannon 1x Particle Cannon A-02 Transporter 2x Plasma Cutter 3x Wheel 1x Particle Cannon A-02 Transporter 3x Rocket Launcher A-02 Transporter 1x Hvy. Ion Engine 5x Imp. Medium Laser >>Prototypes Downloading prototype IDs... Hvy. EM Shotgun Adv. EMP Blaster Map ----- +----------------------------------------------------+ | | | | | | | | | | | ??????????????????????????????????????????????? | | ??????????????????????????????????????????????? | | ??????????????????????????????????????????????? | | #####################????######???????????????? | | #?### ????????????????? | | +#####+######## ### # ############??????? | | #?????# ## ??????? | | #?????# # #?????? | | #????## #?????? | | #????+ # """????????? | | """ """ #????# """????????? | | """ """ #????# ## # r [ """ ???????? | | """ """ #????# ?####### # #?????? | | #????#+######## ##+#####??????? | | #########????# T ## %% #??????????? | | ?????????????# #??????????? | | ?????????????# # #??????????? | | ?????????????# # # ##u #??????????? | | ?????????????########?## #??????????? | | ???????????????????????# #????????? | | ???????????????????????#[@""# +????????? | | ???????????????????????# T"# #????????? | | ???????????????????????# ""## ##### #????????? | | ???????????????????????# #? #?????#????????? | | ???????????????????????######??#??????????????? | | ??????????????????????????????????????????????? | | ??????????????????????????????????????????????? | | ??????????????????????????????????????????????? | | ??????????????????????????????????????????????? | | ??????????????????????????????????????????????? | | ??????????????????????????????????????????????? | | ??????????????????????????????????????????????? | | ??????????????????????????????????????????????? | | ??????????????????????????????????????????????? | | ??????????????????????????????????????????????? | | ??????????????????????????????????????????????? | | ??????????????????????????????????????????????? | | ??????????????????????????????????????????????? | | ??????????????????????????????????????????????? | | ??????????????????????????????????????????????? | | ??????????????????????????????????????????????? | | ??????????????????????????????????????????????? | | ??????????????????????????????????????????????? | | ??????????????????????????????????????????????? | | ??????????????????????????????????????????????? | +----------------------------------------------------+ Best States ------------- Heat Dissipation 38 Energy Generation 10 Energy Capacity 250 Matter Stores 300 Matter Capacity 300 Sight Range 16 Terrain Scan Density 10 Evasion (%) 44 Recoil Reduction 3 Offensive Hacking 10 Item Schematics ----------------- None Robot Schematics ------------------ None Fabricated ------------ Nothing Repaired ---------- Nothing Studied --------- None Alien Tech Used ----------------- None Achievements -------------- Resistances Are Futile Challenges ------------ None Game ------ Seed CloakColdRecalibrator Manual? 0 Play Time 00:18:36 Cumulative 40.2 hours Start 2026.09.12 @ 02:45:02 End 2026.09.22 @ 22:23:37 Sessions 5 Manual Loads 0 Difficulty Rogue Special Mode None Game No. 53 Rogue 53 Adventurer 0 Explorer 0 Win Type - Total 0 Types 0/0/0/0/0/0/0/0/0/0 Lore% 16 Gallery% 23 Achievement% 18 Wizard Run 0 Options --------- Layout 1 ASCII 0 Keyboard 1 Movement Arrows Keybinds 0 Fullscreen 1 Font 24/Smallcaps Map View 50x40 Zoom Use 0% Tactical HUD 1 Map Filters NONE Filters NONE Steam 1 RUN: 008baace-a2af-468d-8999-10bb3a86a606